Workbook

Sheet Instructions
B2: State of Georgia
B3: In Conjunction with NASPO ValuePoint
B4: Electronic Request for Proposals ("eRFP")
B5: eRFP (Event) Number: 41900-DCH0000136
B6: Event Name: Pharmacy Benefit Services
B7: Attachment S - PBA Services Cost Worksheet
B9: Instructions for Supplier
B10: Suppliers are bidding on the Design, Development and Implementation (DDI), monthly Operations and Maintenance (O&M) costs, and additional program support the Supplier will charge to administer the Pharmacy Benefit Administrator Services as described in the eRFP. Please refer to the instructions below, Attachment A eRFP document "Section 5, Cost Proposal," Attachment C - Common Scope Requirements and Security Standards, and Attachment F - Pharmacy Benefit Administrator Services Scope of Work for details describing the scope to be provided before completing this Cost Worksheet.
B11: 1 | C11: Suppliers shall complete the Cost Proposal worksheet using the cells highlighted in yellow.
B12: 2 | C12: Suppliers shall not modify any cells in the spreadsheet other than those highlighted yellow. The other cells are fixed or will calculate automatically.
B13: 3 | C13: Suppliers shall not modify the formulas in the worksheets.
B14: 4 | C14: Suppliers shall insert 0 in any yellow highlighted cells that are not applicable or for which the proposed cost is zero ($0).
B15: 5 | C15: For evaluation purposes, the total cost will be determined by the value found in D14 which is comprised of the total DDI (Table A) and O&M (Tables B.1and B.2) costs over a period of ten (10) years.
B17: Instructions for Adjusting Costs One or More Years After the Effective Date of the Master Agreement
B19: For Participating Addenda signed one year or more years after the Effective Date of the Master Agreement, the cost will be adjusted using the Consumer Price Index Urban (CPI-U) to account for economic changes that may impact cost.
B22: CPI-U for United States Adjustment Factor Calculation:
B23: CPI-U Index for the month and year of the execution of a Participating Addendum
B24: Less the CPI-U Index for the month and year of the Effective Date of the Master Agreement
B25: Equals Index Point Change
B26: Divided by CPI-U Index B: C/B = D
B27: Result multiplied by 100: D*100 = E: Equals CPI-U Inflation Percentage
B29: Steps to Adjust Costs for CPI-U
B30: 1 | C30: Follow the link below to access the CPI-U data.
C31: https://www.bls.gov/cpi/tables/supplemental-files/home.htm
B32: 2 | C32: Select, download and save the file with the most recently published CPI-U data that is available for the month the Participating Addendum is signed. (Also find and select the CPI-U for when the Master Agreement was originally executed). Use the “All Items” CPI-U “Unadjusted indexes” values instead of the “Seasonally adjusted indexes” values.
B33: 3 | C33: Enter the CPI-U value from the previous step in field C92 "CPI-U for Participating Addendum Date."
B34: 4 | C34: Enter the CPI-U value for the month of the Effective Date of the Master Agreement in C91 "CPI-U for Master Agreement Date MM/DD/20YY."
B35: 5 | C35: The “CPI-U Inflation Percentage” will be calculated automatically based on the values from steps 3 and 4. This will also automatically update all the CPI-U Adjusted Price fields in the cost tables.
B36: 6 | C36: CPI-U Adjusted Prices will be subject to negotiation upon execution of a Participating Addendum.

Sheet Cost Worksheet
B2: State of Georgia
B3: In Conjunction with NASPO ValuePoint
B4: Electronic Request for Proposals ("eRFP")
B5: eRFP (Event) Number: 41900-DCH0000136
B6: Event Name: Pharmacy Benefit Services
B7: Attachment S - PBA Services Cost Worksheet
B9: SUPPLIER LEGAL ENTITY NAME: | C9: OptumRx, Inc. (ALL INFORMATION IN THIS WORKBOOK IS CONSIDERED CONFIDENTIAL, PROPRIETARY AND TRADE SECRET INFORMATION OF OPTUM RX)
B10: SUPPLIER REPRESENTATIVE NAME: | C10: Jeffrey Gottlieb
B11: SUPPLIER REPRESENTATIVE TITLE: | C11: Area Vice President, Public Sector Sales
B12: DATE: | C12: 2024-05-13
B14: TOTAL EVALUATION COST AMOUNT (Sum of Evaluation Costs Below): | D14: =D26+AA35+AA40+AA45+AA50+AA55+AA65+AA70+AA75+AA80 -> $306,163,421.06
B16: Table A
B17: Instructions: Please enter the costs to implement your services and/or Solution.
B18: Design, Development, and Implementation (DDI) Cost
C19: Initial Cost | D19: CPI-U Adjusted Cost
B20: Project Planning and Startup | C20: $341,881.54 | D20: =+C20*$C$100 -> $341,881.54
B21: Design, Development, and Testing | C21: $2,051,289.25 | D21: $2,051,289.25
B22: Operational Readiness and Production Cutover | C22: $341,881.54 | D22: $341,881.54
B23: Training | C23: $68,376.31 | D23: $68,376.31
B24: Acceptance, Deployment | C24: $102,564.46 | D24: $102,564.46
B25: Certification | C25: $512,822.31 | D25: $512,822.31
B26: Total DDI Costs: | D26: =SUM(D20:D25) -> $3,418,815.42
B28: Table B.1
B29: Point-of-Sale Claims Processing O&M Administrative Fees | E29: Evaluation Factor | F29: Rate | G29: Year 1 | I29: Year 2 | K29: Year 3 | M29: Year 4 | O29: Year 5 | Q29: Year 6 | S29: Year 7 | U29: Year 8 | W29: Year 9 | Y29: Year 10 | AA29: 10-Year Evaluation Total for Claims Processing Administration
G30: Initial Rate | H30: CPI-U Adjusted Rate | I30: Initial Rate | J30: CPI-U Adjusted Rate | K30: Initial Rate | L30: CPI-U Adjusted Rate | M30: Initial Rate | N30: CPI-U Adjusted Rate | O30: Initial Rate | P30: CPI-U Adjusted Rate | Q30: Initial Rate | R30: CPI-U Adjusted Rate | S30: Initial Rate | T30: CPI-U Adjusted Rate | U30: Initial Rate | V30: CPI-U Adjusted Rate | W30: Initial Rate | X30: CPI-U Adjusted Rate | Y30: Initial Rate | Z30: CPI-U Adjusted Rate
B31: Tier 1 Administrative Fees | E31: 175,000 | F31: Per Claim
B32: Claims Processing Administrative Fees
B33: Less than 200,000 Claims per Month | G33: $1.96 | H33: =G33*$C$100 -> $1.96 | I33: $1.99 | J33: =I33*$C$100 -> $1.99 | K33: $2.02 | L33: =K33*$C$100 -> $2.02 | M33: $2.05 | N33: =M33*$C$100 -> $2.05 | O33: $2.08 | P33: =O33*$C$100 -> $2.08 | Q33: $2.11 | R33: =Q33*$C$100 -> $2.11 | S33: $2.15 | T33: =S33*$C$100 -> $2.15 | U33: $2.19 | V33: =U33*$C$100 -> $2.19 | W33: $2.23 | X33: =W33*$C$100 -> $2.23 | Y33: $2.33 | Z33: =Y33*$C$100 -> $2.33
G34: X 12 | H34: months * Evaluation Factor | I34: X 12 | J34: months * Evaluation Factor | K34: X 12 | L34: months * Evaluation Factor | M34: X 12 | N34: months * Evaluation Factor | O34: X 12 | P34: months * Evaluation Factor | Q34: X 12 | R34: months * Evaluation Factor | S34: X 12 | T34: months * Evaluation Factor | U34: X 12 | V34: months * Evaluation Factor | W34: X 12 | X34: months * Evaluation Factor | Y34: X 12 | Z34: months * Evaluation Factor
B35: Tier 1 Evaluation Cost | G35: =MAX(ROUND(H33*E31*12,2),0) -> =$4,116,000 | I35: =MAX(ROUND(J33*E31*12,2),0) -> =$4,179,630 | K35: =MAX(ROUND(L33*E31*12,2),0) -> =$4,248,882 | M35: =MAX(ROUND(N33*E31*12,2),0) -> =$4,299,168 | O35: =MAX(ROUND(P33*E31*12,2),0) -> =$4,367,726 | Q35: =MAX(ROUND(R33*E31*12,2),0) -> =$4,438,814 | S35: =MAX(ROUND(T33*E31*12,2),0) -> =$4,512,530 | U35: =MAX(ROUND(V33*E31*12,2),0) -> =$4,588,980 | W35: =MAX(ROUND(X33*E31*12,2),0) -> =$4,683,000 | Y35: =MAX(ROUND(Z33*E31*12,2),0) -> =$4,895,278 | AA35: =SUM(G35:Y35) -> =$44,330,007
B36: Tier 2 Administrative Fees | E36: 225,000 | F36: Per Claim
B37: Claims Processing Administrative Fees
B38: Minimum of 200,000 Claims per Month | G38: $1.54 | H38: =G38*$C$100 -> $1.54 | I38: $1.56 | J38: =I38*$C$100 -> $1.56 | K38: $1.58 | L38: =K38*$C$100 -> $1.58 | M38: $1.60 | N38: =M38*$C$100 -> $1.60 | O38: $1.63 | P38: =O38*$C$100 -> $1.63 | Q38: $1.65 | R38: =Q38*$C$100 -> $1.65 | S38: $1.68 | T38: =S38*$C$100 -> $1.68 | U38: $1.71 | V38: =U38*$C$100 -> $1.71 | W38: $1.74 | X38: =W38*$C$100 -> $1.74 | Y38: $1.82 | Z38: =Y38*$C$100 -> $1.82
G39: X 12 | H39: months * Evaluation Factor | I39: X 12 | J39: months * Evaluation Factor | K39: X 12 | L39: months * Evaluation Factor | M39: X 12 | N39: months * Evaluation Factor | O39: X 12 | P39: months * Evaluation Factor | Q39: X 12 | R39: months * Evaluation Factor | S39: X 12 | T39: months * Evaluation Factor | U39: X 12 | V39: months * Evaluation Factor | W39: X 12 | X39: months * Evaluation Factor | Y39: X 12 | Z39: months * Evaluation Factor
B40: Tier 2 Evaluation Cost | G40: =MAX(ROUND(H38*E36*12,2),0) -> =$4,158,000 | I40: =MAX(ROUND(J38*E36*12,2),0) -> =$4,212,837 | K40: =MAX(ROUND(L38*E36*12,2),0) -> =$4,265,147 | M40: =MAX(ROUND(N38*E36*12,2),0) -> =$4,331,763 | O40: =MAX(ROUND(P38*E36*12,2),0) -> =$4,408,119 | Q40: =MAX(ROUND(R38*E36*12,2),0) -> =$4,466,700 | S40: =MAX(ROUND(T38*E36*12,2),0) -> =$4,535,143 | U40: =MAX(ROUND(V38*E36*12,2),0) -> =$4,614,055 | W40: =MAX(ROUND(X38*E36*12,2),0) -> =$4,690,040 | Y40: =MAX(ROUND(Z38*E36*12,2),0) -> =$4,909,943 | AA40: =SUM(G40:Y40) -> =$44,591,749
B41: Tier 3 Administrative Fees | E41: 500,000 | F41: Per Claim
B42: Claims Processing Administrative Fees
B43: Minimum of 500,000 Claims per Month | G43: $0.72 | H43: =G43*$C$100 -> $0.72 | I43: $0.72 | J43: =I43*$C$100 -> $0.72 | K43: $0.74 | L43: =K43*$C$100 -> $0.74 | M43: $0.75 | N43: =M43*$C$100 -> $0.75 | O43: ='[1]Proforma Financial Analysis 500'!$I$23 -> $0.77 | P43: =O43*$C$100 -> $0.77 | Q43: $0.78 | R43: =Q43*$C$100 -> $0.78 | S43: $0.79 | T43: =S43*$C$100 -> $0.79 | U43: $0.80 | V43: =U43*$C$100 -> $0.80 | W43: $0.81 | X43: =W43*$C$100 -> $0.81 | Y43: $0.85 | Z43: =Y43*$C$100 -> $0.85
G44: X 12 | H44: months * Evaluation Factor | I44: X 12 | J44: months * Evaluation Factor | K44: X 12 | L44: months * Evaluation Factor | M44: X 12 | N44: months * Evaluation Factor | O44: X 12 | P44: months * Evaluation Factor | Q44: X 12 | R44: months * Evaluation Factor | S44: X 12 | T44: months * Evaluation Factor | U44: X 12 | V44: months * Evaluation Factor | W44: X 12 | X44: months * Evaluation Factor | Y44: X 12 | Z44: months * Evaluation Factor
B45: Tier 3 Evaluation Cost | G45: =MAX(ROUND(H43*E41*12,2),0) -> =$4,340,000 | I45: =MAX(ROUND(J43*E41*12,2),0) -> =$4,340,000 | K45: =MAX(ROUND(L43*E41*12,2),0) -> =$4,452,550 | M45: =MAX(ROUND(N43*E41*12,2),0) -> =$4,528,738 | O45: =MAX(ROUND(P43*E41*12,2),0) -> =$4,592,964 | Q45: =MAX(ROUND(R43*E41*12,2),0) -> =$4,680,000 | S45: =MAX(ROUND(T43*E41*12,2),0) -> =$4,731,905 | U45: =MAX(ROUND(V43*E41*12,2),0) -> =$4,812,171 | W45: =MAX(ROUND(X43*E41*12,2),0) -> =$4,879,110 | Y45: =MAX(ROUND(Z43*E41*12,2),0) -> =$5,099,502 | AA45: =SUM(G45:Y45) -> =$46,456,941
B46: Tier 4 Administrative Fees | E46: 750,000 | F46: Per Claim
B47: Claims Processing Administrative Fee
B48: Minimum of 750,000 Claims per Month | G48: $0.50 | H48: =G48*$C$100 -> $0.50 | I48: ='[1]Proforma Financial Analysis 750'!$F$23 -> $0.51 | J48: =I48*$C$100 -> $0.51 | K48: $0.51 | L48: =K48*$C$100 -> $0.51 | M48: $0.52 | N48: =M48*$C$100 -> $0.52 | O48: $0.53 | P48: =O48*$C$100 -> $0.53 | Q48: $0.54 | R48: =Q48*$C$100 -> $0.54 | S48: $0.55 | T48: =S48*$C$100 -> $0.55 | U48: $0.55 | V48: =U48*$C$100 -> $0.55 | W48: $0.56 | X48: =W48*$C$100 -> $0.56 | Y48: $0.58 | Z48: =Y48*$C$100 -> $0.58
G49: X 12 | H49: months * Evaluation Factor | I49: X 12 | J49: months * Evaluation Factor | K49: X 12 | L49: months * Evaluation Factor | M49: X 12 | N49: months * Evaluation Factor | O49: X 12 | P49: months * Evaluation Factor | Q49: X 12 | R49: months * Evaluation Factor | S49: X 12 | T49: months * Evaluation Factor | U49: X 12 | V49: months * Evaluation Factor | W49: X 12 | X49: months * Evaluation Factor | Y49: X 12 | Z49: months * Evaluation Factor
B50: Tier 4 Evaluation Cost | G50: =MAX(ROUND(H48*E46*12,2),0) -> =$4,510,000 | I50: =MAX(ROUND(J48*E46*12,2),0) -> =$4,568,846 | K50: =MAX(ROUND(L48*E46*12,2),0) -> =$4,626,000 | M50: =MAX(ROUND(N48*E46*12,2),0) -> =$4,694,406 | O50: =MAX(ROUND(P48*E46*12,2),0) -> =$4,759,118 | Q50: =MAX(ROUND(R48*E46*12,2),0) -> =$4,835,943 | S50: =MAX(ROUND(T48*E46*12,2),0) -> =$4,906,473 | U50: =MAX(ROUND(V48*E46*12,2),0) -> =$4,979,759 | W50: =MAX(ROUND(X48*E46*12,2),0) -> =$5,055,781 | Y50: =MAX(ROUND(Z48*E46*12,2),0) -> =$5,256,254 | AA50: =SUM(G50:Y50) -> =$48,192,580
B51: Tier 5 Administrative Fees | E51: 1,000,000 | F51: Per Claim
B52: Claims Processing Administrative Fees
B53: Minimum of 1,000,000 Claims per Month | G53: $0.36 | H53: =G53*$C$100 -> $0.36 | I53: $0.37 | J53: =I53*$C$100 -> $0.37 | K53: $0.37 | L53: =K53*$C$100 -> $0.37 | M53: ='[1]Proforma Financial Analysis'!$H$27 -> $0.38 | N53: =M53*$C$100 -> $0.38 | O53: $0.38 | P53: =O53*$C$100 -> $0.38 | Q53: $0.39 | R53: =Q53*$C$100 -> $0.39 | S53: $0.39 | T53: =S53*$C$100 -> $0.39 | U53: $0.40 | V53: =U53*$C$100 -> $0.40 | W53: $0.40 | X53: =W53*$C$100 -> $0.40 | Y53: $0.42 | Z53: =Y53*$C$100 -> $0.42
G54: X 12 | H54: months * Evaluation Factor | I54: X 12 | J54: months * Evaluation Factor | K54: X 12 | L54: months * Evaluation Factor | M54: X 12 | N54: months * Evaluation Factor | O54: X 12 | P54: months * Evaluation Factor | Q54: X 12 | R54: months * Evaluation Factor | S54: X 12 | T54: months * Evaluation Factor | U54: X 12 | V54: months * Evaluation Factor | W54: X 12 | X54: months * Evaluation Factor | Y54: X 12 | Z54: months * Evaluation Factor
B55: Tier 5 Evaluation Cost | G55: =MAX(ROUND(H53*E51*12,2),0) -> =$4,327,251 | I55: =MAX(ROUND(J53*E51*12,2),0) -> =$4,393,552 | K55: =MAX(ROUND(L53*E51*12,2),0) -> =$4,452,979 | M55: =MAX(ROUND(N53*E51*12,2),0) -> =$4,514,430 | O55: =MAX(ROUND(P53*E51*12,2),0) -> =$4,577,801 | Q55: =MAX(ROUND(R53*E51*12,2),0) -> =$4,643,211 | S55: =MAX(ROUND(T53*E51*12,2),0) -> =$4,710,807 | U55: =MAX(ROUND(V53*E51*12,2),0) -> =$4,780,676 | W55: =MAX(ROUND(X53*E51*12,2),0) -> =$4,852,913 | Y55: =MAX(ROUND(Z53*E51*12,2),0) -> =$5,031,655 | AA55: =SUM(G55:Y55) -> =$46,285,275
B58: Table B.2
B59: Additional Pharmacy Benefit Administrator Program (PBAP) O&M Admnistrative Fees | E59: Evaluation Factor | F59: Rate | G59: Year 1 | I59: Year 2 | K59: Year 3 | M59: Year 4 | O59: Year 5 | Q59: Year 6 | S59: Year 7 | U59: Year 8 | W59: Year 9 | Y59: Year 10 | AA59: 10-Year Total Evaluation Cost
G60: Initial Rate | H60: CPI-U Adjusted Rate | I60: Initial Rate | J60: CPI-U Adjusted Rate | K60: Initial Rate | L60: CPI-U Adjusted Rate | M60: Initial Rate | N60: CPI-U Adjusted Rate | O60: Initial Rate | P60: CPI-U Adjusted Rate | Q60: Initial Rate | R60: CPI-U Adjusted Rate | S60: Initial Rate | T60: CPI-U Adjusted Rate | U60: Initial Rate | V60: CPI-U Adjusted Rate | W60: Initial Rate | X60: CPI-U Adjusted Rate | Y60: Initial Rate | Z60: CPI-U Adjusted Rate
B61: Monthly Prior Authorizations (PA) Administrative Fee for the Preferred Drug List (PDL) | E61: N/A | F61: Per Month
B62: The monthly administrative fee should include all O&M costs to provide prior authorizations for the PDL.
G63: $250,204.17 | H63: =G63*C100 -> $250,204.17 | I63: $257,710.29 | J63: =I63*C100 -> $257,710.29 | K63: $265,441.60 | L63: =K63*C100 -> $265,441.60 | M63: $273,404.85 | N63: =M63*C100 -> $273,404.85 | O63: $281,606.99 | P63: =O63*C100 -> $281,606.99 | Q63: $290,055.20 | R63: =Q63*C100 -> $290,055.20 | S63: $298,756.86 | T63: =S63*C100 -> $298,756.86 | U63: $307,719.57 | V63: =U63*C100 -> $307,719.57 | W63: $316,951.15 | X63: =W63*C100 -> $316,951.15 | Y63: $326,459.69 | Z63: =Y63*C100 -> $326,459.69
G64: X 12 | H64: months * Evaluation Factor | I64: X 12 | J64: months * Evaluation Factor | K64: X 12 | L64: months * Evaluation Factor | M64: X 12 | N64: months * Evaluation Factor | O64: X 12 | P64: months * Evaluation Factor | Q64: X 12 | R64: months * Evaluation Factor | S64: X 12 | T64: months * Evaluation Factor | U64: X 12 | V64: months * Evaluation Factor | W64: X 12 | X64: months * Evaluation Factor | Y64: X 12 | Z64: months * Evaluation Factor
B65: Total Period Cost | G65: =MAX(ROUND(H63*12,2),0) -> =$3,002,450 | I65: =MAX(ROUND(J63*12,2),0) -> =$3,092,524 | K65: =MAX(ROUND(L63*12,2),0) -> =$3,185,299 | M65: =MAX(ROUND(N63*12,2),0) -> =$3,280,858 | O65: =MAX(ROUND(P63*12,2),0) -> =$3,379,284 | Q65: =MAX(ROUND(R63*12,2),0) -> =$3,480,662 | S65: =MAX(ROUND(T63*12,2),0) -> =$3,585,082 | U65: =MAX(ROUND(V63*12,2),0) -> =$3,692,635 | W65: =MAX(ROUND(X63*12,2),0) -> =$3,803,414 | Y65: =MAX(ROUND(Z63*12,2),0) -> =$3,917,516 | AA65: =SUM(G65:Y65) -> $34,419,724.45
B66: Monthly PA Administrative Fee for the Provider Administered Drug List (PADL) | E66: N/A | F66: Per Month
B67: The monthly administrative fee should include all O&M costs to provide prior authorizations for the PADL.
G68: $181,500.00 | H68: =G68*C100 -> $181,500.00 | I68: $186,945.00 | J68: =I68*C100 -> $186,945.00 | K68: $192,553.35 | L68: =K68*C100 -> $192,553.35 | M68: $198,329.95 | N68: =M68*C100 -> $198,329.95 | O68: $204,279.85 | P68: =O68*C100 -> $204,279.85 | Q68: $210,408.24 | R68: =Q68*C100 -> $210,408.24 | S68: $216,720.49 | T68: =S68*C100 -> $216,720.49 | U68: $223,222.11 | V68: =U68*C100 -> $223,222.11 | W68: $229,918.77 | X68: =W68*C100 -> $229,918.77 | Y68: $236,816.33 | Z68: =Y68*C100 -> $236,816.33
G69: X 12 | H69: months * Evaluation Factor | I69: X 12 | J69: months * Evaluation Factor | K69: X 12 | L69: months * Evaluation Factor | M69: X 12 | N69: months * Evaluation Factor | O69: X 12 | P69: months * Evaluation Factor | Q69: X 12 | R69: months * Evaluation Factor | S69: X 12 | T69: months * Evaluation Factor | U69: X 12 | V69: months * Evaluation Factor | W69: X 12 | X69: months * Evaluation Factor | Y69: X 12 | Z69: months * Evaluation Factor
B70: Total Period Cost | G70: =MAX(ROUND(H68*12,2),0) -> =$2,178,000 | I70: =MAX(ROUND(J68*12,2),0) -> =$2,243,340 | K70: =MAX(ROUND(L68*12,2),0) -> =$2,310,640 | M70: =MAX(ROUND(N68*12,2),0) -> =$2,379,959 | O70: =MAX(ROUND(P68*12,2),0) -> =$2,451,358 | Q70: =MAX(ROUND(R68*12,2),0) -> =$2,524,899 | S70: =MAX(ROUND(T68*12,2),0) -> =$2,600,646 | U70: =MAX(ROUND(V68*12,2),0) -> =$2,678,665 | W70: =MAX(ROUND(X68*12,2),0) -> =$2,759,025 | Y70: =MAX(ROUND(Z68*12,2),0) -> =$2,841,796 | AA70: =SUM(G70:Y70) -> $24,968,329.14
B71: Appeals Administrative Fee | E71: 250 | F71: Per Appeal
B72: The administrative fee should include all O&M costs to provide the required services per appeal.
G73: $150.00 | H73: =G73*C100 -> $150.00 | I73: $150.00 | J73: =I73*C100 -> $150.00 | K73: $150.00 | L73: =K73*C100 -> $150.00 | M73: $150.00 | N73: =M73*C100 -> $150.00 | O73: $150.00 | P73: =O73*C100 -> $150.00 | Q73: $150.00 | R73: =Q73*C100 -> $150.00 | S73: $150.00 | T73: =S73*C100 -> $150.00 | U73: $150.00 | V73: =U73*C100 -> $150.00 | W73: $150.00 | X73: =W73*C100 -> $150.00 | Y73: $150.00 | Z73: =Y73*C100 -> $150.00
G74: X 12 | H74: months * Evaluation Factor | I74: X 12 | J74: months * Evaluation Factor | K74: X 12 | L74: months * Evaluation Factor | M74: X 12 | N74: months * Evaluation Factor | O74: X 12 | P74: months * Evaluation Factor | Q74: X 12 | R74: months * Evaluation Factor | S74: X 12 | T74: months * Evaluation Factor | U74: X 12 | V74: months * Evaluation Factor | W74: X 12 | X74: months * Evaluation Factor | Y74: X 12 | Z74: months * Evaluation Factor
B75: Total Evaluation Cost | G75: =MAX(ROUND(H73*E71*12,2),0) -> =$450,000 | I75: =MAX(ROUND(J73*E71*12,2),0) -> =$450,000 | K75: =MAX(ROUND(L73*E71*12,2),0) -> =$450,000 | M75: =MAX(ROUND(N73*E71*12,2),0) -> =$450,000 | O75: =MAX(ROUND(P73*E71*12,2),0) -> =$450,000 | Q75: =MAX(ROUND(R73*E71*12,2),0) -> =$450,000 | S75: =MAX(ROUND(T73*E71*12,2),0) -> =$450,000 | U75: =MAX(ROUND(V73*E71*12,2),0) -> =$450,000 | W75: =MAX(ROUND(X73*E71*12,2),0) -> =$450,000 | Y75: =MAX(ROUND(Z73*E71*12,2),0) -> =$450,000 | AA75: =SUM(G75:Y75) -> $4,500,000.00
B76: Clinical Peer-to-Peer Reviews | E76: 250 | F76: Per Clinical Peer-to-Peer Review
B77: The administrative fee should include all O&M costs to provide the required services per clinical peer-to-peer review.
G78: $300.00 | H78: =G78*C100 -> $300.00 | I78: $300.00 | J78: =I78*C100 -> $300.00 | K78: $300.00 | L78: =K78*C100 -> $300.00 | M78: $300.00 | N78: =M78*C100 -> $300.00 | O78: $300.00 | P78: =O78*C100 -> $300.00 | Q78: $300.00 | R78: =Q78*C100 -> $300.00 | S78: $300.00 | T78: =S78*C100 -> $300.00 | U78: $300.00 | V78: =U78*C100 -> $300.00 | W78: $300.00 | X78: =W78*C100 -> $300.00 | Y78: $300.00 | Z78: =Y78*C100 -> $300.00
G79: X 12 | H79: months * Evaluation Factor | I79: X 12 | J79: months * Evaluation Factor | K79: X 12 | L79: months * Evaluation Factor | M79: X 12 | N79: months * Evaluation Factor | O79: X 12 | P79: months * Evaluation Factor | Q79: X 12 | R79: months * Evaluation Factor | S79: X 12 | T79: months * Evaluation Factor | U79: X 12 | V79: months * Evaluation Factor | W79: X 12 | X79: months * Evaluation Factor | Y79: X 12 | Z79: months * Evaluation Factor
B80: Total Evaluation Cost | G80: =MAX(ROUND(H78*E76*12,2),0) -> =$900,000 | I80: =MAX(ROUND(J78*E76*12,2),0) -> =$900,000 | K80: =MAX(ROUND(L78*E76*12,2),0) -> =$900,000 | M80: =MAX(ROUND(N78*E76*12,2),0) -> =$900,000 | O80: =MAX(ROUND(P78*E76*12,2),0) -> =$900,000 | Q80: =MAX(ROUND(R78*E76*12,2),0) -> =$900,000 | S80: =MAX(ROUND(T78*E76*12,2),0) -> =$900,000 | U80: =MAX(ROUND(V78*E76*12,2),0) -> =$900,000 | W80: =MAX(ROUND(X78*E76*12,2),0) -> =$900,000 | Y80: =MAX(ROUND(Z78*E76*12,2),0) -> =$900,000 | AA80: =SUM(G80:Y80) -> $9,000,000.00
B83: Table C
B84: Instructions: Complete the section below by entering the Hourly Rate in the yellow boxes for each identified Role. As may be requested by the State on a case by case basis and agreed upon by the Contractor, the Contractor will provide ad hoc services related to potential tasks as described below. Note: These charges will only be billed for project-related services not specified in the eRFP and requested by the State for such services in writing. The total cost for all State requested and approved projects shall not exceed the amount indicated by the State in its Participating Addendum. The proposed costs will not be evaluated as part of the total contract value.
B85: Ad Hoc Professional Services | G85: Year 1 | I85: Year 2 | K85: Year 3 | M85: Year 4 | O85: Year 5 | Q85: Year 6 | S85: Year 7 | U85: Year 8 | W85: Year 9 | Y85: Year 10 | AA85: 10-Year Average of Hourly Rates
B86: Role | C86: Potential Responsibilities | G86: Initial Hourly Rate | H86: CPI-U Adjusted Rate | I86: Initial Hourly Rate | J86: CPI-U Adjusted Rate | K86: Initial Hourly Rate | L86: CPI-U Adjusted Rate | M86: Initial Hourly Rate | N86: CPI-U Adjusted Rate | O86: Initial Hourly Rate | P86: CPI-U Adjusted Rate | Q86: Initial Hourly Rate | R86: CPI-U Adjusted Rate | S86: Initial Hourly Rate | T86: CPI-U Adjusted Rate | U86: Initial Hourly Rate | V86: CPI-U Adjusted Rate | W86: Initial Hourly Rate | X86: CPI-U Adjusted Rate | Y86: Initial Hourly Rate | Z86: CPI-U Adjusted Rate
B87: Business Analyst | C87: Evaluates business processes, anticipating requirements, uncovering areas for improvement, and developing and implementing Solutions. | G87: $136.00 | H87: =MAX(ROUND(G87*$C$100,2),0) -> $136.00 | I87: $136.00 | J87: =MAX(ROUND(I87*$C$100,2),0) -> $136.00 | K87: $136.00 | L87: =MAX(ROUND(K87*$C$100,2),0) -> $136.00 | M87: $136.00 | N87: =MAX(ROUND(M87*$C$100,2),0) -> $136.00 | O87: $136.00 | P87: =MAX(ROUND(O87*$C$100,2),0) -> $136.00 | Q87: $136.00 | R87: =MAX(ROUND(Q87*$C$100,2),0) -> $136.00 | S87: $136.00 | T87: =MAX(ROUND(S87*$C$100,2),0) -> $136.00 | U87: $136.00 | V87: =MAX(ROUND(U87*$C$100,2),0) -> $136.00 | W87: $136.00 | X87: =MAX(ROUND(W87*$C$100,2),0) -> $136.00 | Y87: $136.00 | Z87: =MAX(ROUND(Y87*$C$100,2),0) -> $136.00 | AA87: =(H87+J87+L87+N87+P87+R87+T87+V87+X87+Z87)/10 -> $136.00
B88: Senior Developer | C88: Responsible for designing, testing, and implementing new and updated software programs. | G88: $136.00 | H88: =MAX(ROUND(G88*$C$100,2),0) -> $136.00 | I88: $136.00 | J88: =MAX(ROUND(I88*$C$100,2),0) -> $136.00 | K88: $136.00 | L88: =MAX(ROUND(K88*$C$100,2),0) -> $136.00 | M88: $136.00 | N88: =MAX(ROUND(M88*$C$100,2),0) -> $136.00 | O88: $136.00 | P88: =MAX(ROUND(O88*$C$100,2),0) -> $136.00 | Q88: $136.00 | R88: =MAX(ROUND(Q88*$C$100,2),0) -> $136.00 | S88: $136.00 | T88: =MAX(ROUND(S88*$C$100,2),0) -> $136.00 | U88: $136.00 | V88: =MAX(ROUND(U88*$C$100,2),0) -> $136.00 | W88: $136.00 | X88: =MAX(ROUND(W88*$C$100,2),0) -> $136.00 | Y88: $136.00 | Z88: =MAX(ROUND(Y88*$C$100,2),0) -> $136.00 | AA88: =(H88+J88+L88+N88+P88+R88+T88+V88+X88+Z88)/10 -> $136.00
B89: Developer | C89: Responsible for developing, coding, installing, and maintaining software systems. | G89: $136.00 | H89: =MAX(ROUND(G89*$C$100,2),0) -> $136.00 | I89: $136.00 | J89: =MAX(ROUND(I89*$C$100,2),0) -> $136.00 | K89: $136.00 | L89: =MAX(ROUND(K89*$C$100,2),0) -> $136.00 | M89: $136.00 | N89: =MAX(ROUND(M89*$C$100,2),0) -> $136.00 | O89: $136.00 | P89: =MAX(ROUND(O89*$C$100,2),0) -> $136.00 | Q89: $136.00 | R89: =MAX(ROUND(Q89*$C$100,2),0) -> $136.00 | S89: $136.00 | T89: =MAX(ROUND(S89*$C$100,2),0) -> $136.00 | U89: $136.00 | V89: =MAX(ROUND(U89*$C$100,2),0) -> $136.00 | W89: $136.00 | X89: =MAX(ROUND(W89*$C$100,2),0) -> $136.00 | Y89: $136.00 | Z89: =MAX(ROUND(Y89*$C$100,2),0) -> $136.00 | AA89: =(H89+J89+L89+N89+P89+R89+T89+V89+X89+Z89)/10 -> $136.00
B90: Quality assurance/Test | C90: Works with the development team to debug code, correct errors, and troubleshoot any issues with software code. | G90: $136.00 | H90: =MAX(ROUND(G90*$C$100,2),0) -> $136.00 | I90: $136.00 | J90: =MAX(ROUND(I90*$C$100,2),0) -> $136.00 | K90: $136.00 | L90: =MAX(ROUND(K90*$C$100,2),0) -> $136.00 | M90: $136.00 | N90: =MAX(ROUND(M90*$C$100,2),0) -> $136.00 | O90: $136.00 | P90: =MAX(ROUND(O90*$C$100,2),0) -> $136.00 | Q90: $136.00 | R90: =MAX(ROUND(Q90*$C$100,2),0) -> $136.00 | S90: $136.00 | T90: =MAX(ROUND(S90*$C$100,2),0) -> $136.00 | U90: $136.00 | V90: =MAX(ROUND(U90*$C$100,2),0) -> $136.00 | W90: $136.00 | X90: =MAX(ROUND(W90*$C$100,2),0) -> $136.00 | Y90: $136.00 | Z90: =MAX(ROUND(Y90*$C$100,2),0) -> $136.00 | AA90: =(H90+J90+L90+N90+P90+R90+T90+V90+X90+Z90)/10 -> $136.00
B91: Total Ad Hoc Professional Services Cost (Sum of 10-Year Average of Hourly Rates for all Identified Roles) | AA91: =SUM(AA87:AA90) -> $544.00
B94: Table D
B95: Consumer Price Index Urban (CPI-U) Adjustment:
B96: A. CPI-U for Master Agreement Date MM/DD/20YY: | C96: 0.000000
B97: B. CPI-U for Participating Addendum Date: | C97: 0.000000
B98: C. Index Point Change equals B minus A: | C98: =C97-C96 -> 0.000000
B99: D. Equals C divided by A: | C99: =IFERROR(C98/C96,0) -> 0.000000
B100: E. CPI-U Inflation Percentage equals B plus 1.00: | C100: =C99+1 -> 1.000000

Sheet Scoring Formula
B2: State of Georgia
B3: In Conjunction with NASPO ValuePoint
B4: Electronic Request for Proposals ("eRFP")
B5: eRFP (Event) Number: 41900-DCH0000136
B6: Event Name: Pharmacy Benefit Services
B7: Attachment S - PBA Services Cost Worksheet
B9: Cost Scoring Formula
B12: The Supplier deemed to have the most competitive cost response overall, as determined by the Lead State, will receive the maximum score for the cost criteria. As a general rule, other Suppliers’ cost responses will receive a percentage of the maximum score based on the percentage differential between the most competitive cost proposal and the specific proposal in question. This cost scoring can be accomplished using the following formula:
B13: L/R x P = Z L = Price of the Supplier's response with the lowest cost. R = Total cost of the Proposal being ranked. P = Total points available for cost scoring. Z = Assigned Points.
B14: EXAMPLE - The Lead State receives responses from two Suppliers on an RFP. The RFP assigned 700 possible points for technical scores and 300 possible points for cost scores. Supplier A's cost proposal is $50,000. Supplier B's cost proposal is $55,000. As Supplier A offered the lowest cost, Supplier A receives 300 points. The issuing officer can calculate the number of cost points to assign to Supplier B's cost score by using the formula noted above. As shown below, Supplier B's total cost score is 272.7 points. L/R x P = Z ($50,000/$55,000) x 300 = Z .909 x 300 = Z 272.7 = Z
